[Event "Titled Tuesday Blitz April 26 Late 2022"]
[White "Urbina Perez, Juan Antonio"]
[Black "Lehtosaari, Mauri"]
[WhiteFideId "2217368"]
[BlackFideId "501999"]
[WhiteElo "2192"]
[BlackElo "2527"]
[Result "1/2-1/2"]
[Round "03"]
[TimeControl "180+1"]
[Date "2022.04.26"]
[WhiteClock "0:01:21"]
[BlackClock "0:00:28"]

1. e4 {[%clk 0:03:00]}  d5 {[%clk 0:03:00]} 2. exd5 {[%clk 0:03:00]}  Qxd5 {[%clk 0:03:01]} 3. Nc3 {[%clk 0:02:59]}  Qe5+ {[%clk 0:02:59]} 4. Qe2 {[%clk 0:02:57]}  Qxe2+ {[%clk 0:02:55]} 5. Bxe2 {[%clk 0:02:58]}  c6 {[%clk 0:02:56]} 6. Bf3 {[%clk 0:02:54]}  Bf5 {[%clk 0:02:56]} 7. d3 {[%clk 0:02:53]}  e6 {[%clk 0:02:51]} 8. Nge2 {[%clk 0:02:53]}  Nf6 {[%clk 0:02:49]} 9. h4 {[%clk 0:02:52]}  h6 {[%clk 0:02:47]} 10. Bd2 {[%clk 0:02:50]}  Nbd7 {[%clk 0:02:46]} 11. O-O-O {[%clk 0:02:50]}  Bc5 {[%clk 0:02:43]} 12. Be3 {[%clk 0:02:46]}  Bb6 {[%clk 0:02:37]} 13. Ng3 {[%clk 0:02:46]}  Bh7 {[%clk 0:02:36]} 14. Nge4 {[%clk 0:02:46]}  Bxe3+ {[%clk 0:02:19]} 15. fxe3 {[%clk 0:02:44]}  Ke7 {[%clk 0:02:19]} 16. Rdf1 {[%clk 0:02:39]}  Nd5 {[%clk 0:02:10]} 17. Kd2 {[%clk 0:02:34]}  Ne5 {[%clk 0:02:01]} 18. a3 {[%clk 0:02:28]}  Rhd8 {[%clk 0:01:51]} 19. Nxd5+ {[%clk 0:02:23]}  cxd5 {[%clk 0:01:39]} 20. Nc3 {[%clk 0:02:20]}  Rac8 {[%clk 0:01:34]} 21. Be2 {[%clk 0:02:18]}  a6 {[%clk 0:01:29]} 22. Rf2 {[%clk 0:02:18]}  Rc7 {[%clk 0:01:26]} 23. Rhf1 {[%clk 0:02:18]}  f6 {[%clk 0:01:21]} 24. g4 {[%clk 0:02:09]}  Rdc8 {[%clk 0:01:19]} 25. d4 {[%clk 0:01:58]}  Nf7 {[%clk 0:01:12]} 26. Bd3 {[%clk 0:01:50]}  Bxd3 {[%clk 0:01:08]} 27. cxd3 {[%clk 0:01:51]}  b5 {[%clk 0:01:07]} 28. Rc1 {[%clk 0:01:45]}  Nd6 {[%clk 0:01:04]} 29. Rff1 {[%clk 0:01:44]}  a5 {[%clk 0:01:03]} 30. Ne2 {[%clk 0:01:43]}  Rxc1 {[%clk 0:00:59]} 31. Rxc1 {[%clk 0:01:44]}  Rxc1 {[%clk 0:00:59]} 32. Kxc1 {[%clk 0:01:44]}  f5 {[%clk 0:00:57]} 33. g5 {[%clk 0:01:42]}  hxg5 {[%clk 0:00:52]} 34. hxg5 {[%clk 0:01:43]}  Nf7 {[%clk 0:00:53]} 35. g6 {[%clk 0:01:42]}  Nh8 {[%clk 0:00:48]} 36. Nc3 {[%clk 0:01:39]}  Nxg6 {[%clk 0:00:44]} 37. Nxb5 {[%clk 0:01:38]}  Nf8 {[%clk 0:00:44]} 38. Kd2 {[%clk 0:01:38]}  g5 {[%clk 0:00:43]} 39. Ke2 {[%clk 0:01:37]}  Kd7 {[%clk 0:00:43]} 40. Nc3 {[%clk 0:01:37]}  Kc6 {[%clk 0:00:42]} 41. b4 {[%clk 0:01:37]}  axb4 {[%clk 0:00:42]} 42. axb4 {[%clk 0:01:38]}  Nd7 {[%clk 0:00:43]} 43. Kf3 {[%clk 0:01:37]}  Nb8 {[%clk 0:00:40]} 44. e4 {[%clk 0:01:37]}  Kd6 {[%clk 0:00:34]} 45. b5 {[%clk 0:01:30]}  Nd7 {[%clk 0:00:32]} 46. Ne2 {[%clk 0:01:28]}  Nb6 {[%clk 0:00:28]} 47. Ng3 {[%clk 0:01:23]}  fxe4+ {[%clk 0:00:27]} 48. dxe4 {[%clk 0:01:24]}  dxe4+ {[%clk 0:00:26]} 49. Nxe4+ {[%clk 0:01:22]}  Kd5 {[%clk 0:00:27]} 50. Nxg5 {[%clk 0:01:23]}  Kxd4 {[%clk 0:00:26]} 51. Nxe6+ {[%clk 0:01:23]}  Kc4 {[%clk 0:00:27]} 52. Nc5 {[%clk 0:01:22]}  Kxc5 {[%clk 0:00:27]} 53. Kg2 {[%clk 0:01:21]}  Kxb5 {[%clk 0:00:28]} 1/2-1/2


[Site "https://www.chess.com"]

[Event "Titled Tuesday Blitz April 26 Late 2022"]
[White "Vega Gutierrez, Sabrina"]
[Black "Winkels, Marcel"]
[WhiteFideId "2219026"]
[BlackFideId "1003887"]
[WhiteElo "2286"]
[BlackElo "1900"]
[Result "1-0"]
[Round "03"]
[TimeControl "180+1"]
[Date "2022.04.26"]
[WhiteClock "0:01:00"]
[BlackClock "0:01:06"]

1. e4 {[%clk 0:03:00]}  c5 {[%clk 0:02:58]} 2. Nf3 {[%clk 0:03:01]}  d6 {[%clk 0:02:59]} 3. d4 {[%clk 0:03:01]}  cxd4 {[%clk 0:02:59]} 4. Qxd4 {[%clk 0:03:02]}  Nf6 {[%clk 0:03:00]} 5. Bg5 {[%clk 0:03:01]}  e5 {[%clk 0:02:59]} 6. Bb5+ {[%clk 0:02:48]}  Nc6 {[%clk 0:02:53]} 7. Qd3 {[%clk 0:02:47]}  Be7 {[%clk 0:02:46]} 8. Nc3 {[%clk 0:02:40]}  Be6 {[%clk 0:02:44]} 9. O-O-O {[%clk 0:02:27]}  O-O {[%clk 0:02:28]} 10. Bxc6 {[%clk 0:02:20]}  bxc6 {[%clk 0:02:28]} 11. Bxf6 {[%clk 0:02:20]}  Bxf6 {[%clk 0:02:27]} 12. Qxd6 {[%clk 0:02:19]}  Qb6 {[%clk 0:02:26]} 13. Na4 {[%clk 0:01:52]}  Qxf2 {[%clk 0:02:07]} 14. Rd2 {[%clk 0:01:52]}  Qe3 {[%clk 0:02:03]} 15. Re1 {[%clk 0:01:52]}  Qh6 {[%clk 0:02:00]} 16. Qxc6 {[%clk 0:01:29]}  Rad8 {[%clk 0:01:58]} 17. Nc3 {[%clk 0:01:14]}  Bg4 {[%clk 0:01:56]} 18. Nd5 {[%clk 0:01:14]}  Rxd5 {[%clk 0:01:34]} 19. exd5 {[%clk 0:01:05]}  Bxf3 {[%clk 0:01:28]} 20. gxf3 {[%clk 0:01:05]}  Bg5 {[%clk 0:01:28]} 21. Qxh6 {[%clk 0:01:04]}  Bxh6 {[%clk 0:01:26]} 22. Rxe5 {[%clk 0:01:04]}  f6 {[%clk 0:01:20]} 23. Re7 {[%clk 0:01:03]}  Rd8 {[%clk 0:01:20]} 24. c4 {[%clk 0:01:02]}  a5 {[%clk 0:01:16]} 25. Kc2 {[%clk 0:01:00]}  Bxd2 {[%clk 0:01:14]} 26. Kxd2 {[%clk 0:01:01]}  Kf8 {[%clk 0:01:12]} 27. Ra7 {[%clk 0:01:00]}  Rb8 {[%clk 0:01:12]} 28. Kc3 {[%clk 0:01:00]}  Re8 {[%clk 0:01:09]} 29. c5 {[%clk 0:01:00]}  Re3+ {[%clk 0:01:08]} 30. Kd4 {[%clk 0:01:00]}  Rxf3 {[%clk 0:01:09]} 31. c6 {[%clk 0:01:00]}  Ke8 {[%clk 0:01:07]} 32. Ra8+ {[%clk 0:00:59]}  Ke7 {[%clk 0:01:06]} 33. c7 {[%clk 0:01:00]} 1-0


[Site "https://www.chess.com"]

[Event "Titled Tuesday Blitz April 26 Late 2022"]
[White "Vlassov, Nikolai"]
[Black "Mikhalsky, Vladimir"]
[WhiteFideId "4103360"]
[BlackFideId "14144352"]
[WhiteElo "2407"]
[BlackElo "2301"]
[Result "0-1"]
[Round "03"]
[TimeControl "180+1"]
[Date "2022.04.26"]
[WhiteClock "0:00:05"]
[BlackClock "0:00:22"]

1. e4 {[%clk 0:03:00]}  g6 {[%clk 0:02:59]} 2. h4 {[%clk 0:03:00]}  d5 {[%clk 0:02:57]} 3. exd5 {[%clk 0:03:00]}  Qxd5 {[%clk 0:02:57]} 4. Nc3 {[%clk 0:03:01]}  Qa5 {[%clk 0:02:57]} 5. h5 {[%clk 0:03:01]}  Bg7 {[%clk 0:02:54]} 6. d4 {[%clk 0:03:01]}  Nc6 {[%clk 0:02:53]} 7. Bb5 {[%clk 0:03:00]}  Bd7 {[%clk 0:02:51]} 8. Nf3 {[%clk 0:02:57]}  O-O-O {[%clk 0:02:49]} 9. Bd2 {[%clk 0:02:57]}  Nxd4 {[%clk 0:02:44]} 10. h6 {[%clk 0:02:17]}  Bf6 {[%clk 0:02:27]} 11. Nxd4 {[%clk 0:02:16]}  Bxd4 {[%clk 0:02:25]} 12. a4 {[%clk 0:02:16]}  Bxb5 {[%clk 0:01:53]} 13. axb5 {[%clk 0:02:12]}  Qb6 {[%clk 0:01:49]} 14. O-O {[%clk 0:02:11]}  Nxh6 {[%clk 0:01:43]} 15. Bxh6 {[%clk 0:01:53]}  Bxf2+ {[%clk 0:01:41]} 16. Rxf2 {[%clk 0:01:53]}  Rxd1+ {[%clk 0:01:39]} 17. Rxd1 {[%clk 0:01:53]}  Rd8 {[%clk 0:01:28]} 18. Rxd8+ {[%clk 0:01:44]}  Kxd8 {[%clk 0:01:28]} 19. Kf1 {[%clk 0:01:41]}  f6 {[%clk 0:01:23]} 20. Rd2+ {[%clk 0:01:30]}  Ke8 {[%clk 0:01:23]} 21. Bf4 {[%clk 0:01:30]}  e5 {[%clk 0:01:18]} 22. Bg3 {[%clk 0:01:27]}  a6 {[%clk 0:01:16]} 23. Bf2 {[%clk 0:01:26]}  Qa5 {[%clk 0:01:11]} 24. b6 {[%clk 0:01:13]}  cxb6 {[%clk 0:01:03]} 25. Rd6 {[%clk 0:01:10]}  Qa1+ {[%clk 0:00:59]} 26. Ke2 {[%clk 0:00:59]}  Qxb2 {[%clk 0:00:56]} 27. Kd2 {[%clk 0:00:55]}  b5 {[%clk 0:00:43]} 28. Rxf6 {[%clk 0:00:46]}  b4 {[%clk 0:00:40]} 29. Nd1 {[%clk 0:00:34]}  Qa2 {[%clk 0:00:35]} 30. Rb6 {[%clk 0:00:31]}  Qd5+ {[%clk 0:00:33]} 31. Kc1 {[%clk 0:00:31]}  a5 {[%clk 0:00:32]} 32. Ne3 {[%clk 0:00:26]}  Qe4 {[%clk 0:00:31]} 33. Rb5 {[%clk 0:00:21]}  a4 {[%clk 0:00:30]} 34. Nd5 {[%clk 0:00:20]}  Qxg2 {[%clk 0:00:26]} 35. Nxb4 {[%clk 0:00:08]}  Qf1+ {[%clk 0:00:23]} 36. Kd2 {[%clk 0:00:05]}  Qxb5 {[%clk 0:00:22]} 0-1


[Site "https://www.chess.com"]

[Event "Titled Tuesday Blitz April 26 Late 2022"]
[White "Vovk, Orest"]
[Black "Burke, Paul"]
[WhiteFideId "14113490"]
[BlackFideId "2605767"]
[WhiteElo "2203"]
[BlackElo "1871"]
[Result "1-0"]
[Round "03"]
[TimeControl "180+1"]
[Date "2022.04.26"]
[WhiteClock "0:02:45"]
[BlackClock "0:02:16"]

1. d3 {[%clk 0:03:00]}  a6 {[%clk 0:02:52]} 2. Nd2 {[%clk 0:02:59]}  d6 {[%clk 0:02:52]} 3. Ngf3 {[%clk 0:02:59]}  g6 {[%clk 0:02:52]} 4. e4 {[%clk 0:02:59]}  Nd7 {[%clk 0:02:53]} 5. Be2 {[%clk 0:03:00]}  Bg7 {[%clk 0:02:52]} 6. O-O {[%clk 0:03:01]}  e6 {[%clk 0:02:53]} 7. c3 {[%clk 0:03:02]}  h6 {[%clk 0:02:53]} 8. Re1 {[%clk 0:03:02]}  Ne7 {[%clk 0:02:53]} 9. Bf1 {[%clk 0:03:02]}  O-O {[%clk 0:02:53]} 10. a4 {[%clk 0:03:03]}  b6 {[%clk 0:02:52]} 11. Nc4 {[%clk 0:03:03]}  Bb7 {[%clk 0:02:52]} 12. d4 {[%clk 0:03:01]}  Kh7 {[%clk 0:02:52]} 13. e5 {[%clk 0:03:01]}  d5 {[%clk 0:02:51]} 14. Ne3 {[%clk 0:03:00]}  c5 {[%clk 0:02:51]} 15. b4 {[%clk 0:02:53]}  Rc8 {[%clk 0:02:37]} 16. b5 {[%clk 0:02:53]}  a5 {[%clk 0:02:35]} 17. Ba3 {[%clk 0:02:52]}  Nc6 {[%clk 0:02:16]} 18. bxc6 {[%clk 0:02:45]} 1-0


[Site "https://www.chess.com"]

[Event "Titled Tuesday Blitz April 26 Late 2022"]
[White "Xu, Yi"]
[Black "Sevian, Samuel"]
[WhiteFideId "8605564"]
[BlackFideId "2040506"]
[WhiteElo "2471"]
[BlackElo "2698"]
[Result "0-1"]
[Round "03"]
[TimeControl "180+1"]
[Date "2022.04.26"]
[WhiteClock "0:00:02"]
[BlackClock "0:00:25"]

1. e4 {[%clk 0:03:00]}  e5 {[%clk 0:02:53]} 2. Nf3 {[%clk 0:03:00]}  Nc6 {[%clk 0:02:38]} 3. Bc4 {[%clk 0:03:00]}  Nf6 {[%clk 0:02:37]} 4. d3 {[%clk 0:03:00]}  Be7 {[%clk 0:02:34]} 5. O-O {[%clk 0:02:59]}  O-O {[%clk 0:02:34]} 6. Nc3 {[%clk 0:02:52]}  d6 {[%clk 0:02:35]} 7. a4 {[%clk 0:02:50]}  Kh8 {[%clk 0:02:32]} 8. a5 {[%clk 0:02:43]}  Ng8 {[%clk 0:02:30]} 9. a6 {[%clk 0:02:38]}  Rb8 {[%clk 0:02:21]} 10. axb7 {[%clk 0:02:32]}  Bxb7 {[%clk 0:02:22]} 11. Be3 {[%clk 0:02:26]}  f5 {[%clk 0:02:20]} 12. exf5 {[%clk 0:02:09]}  Rxf5 {[%clk 0:02:15]} 13. Nd5 {[%clk 0:02:09]}  Nb4 {[%clk 0:01:58]} 14. Nxb4 {[%clk 0:01:40]}  Bxf3 {[%clk 0:01:48]} 15. Qd2 {[%clk 0:01:17]}  d5 {[%clk 0:01:42]} 16. Nc6 {[%clk 0:01:15]}  Qd6 {[%clk 0:01:42]} 17. Nxe7 {[%clk 0:01:07]}  Nxe7 {[%clk 0:01:41]} 18. Ra6 {[%clk 0:01:04]}  c6 {[%clk 0:01:38]} 19. gxf3 {[%clk 0:01:00]}  dxc4 {[%clk 0:01:37]} 20. dxc4 {[%clk 0:00:58]}  Qg6+ {[%clk 0:01:35]} 21. Kh1 {[%clk 0:00:58]}  Rxf3 {[%clk 0:01:20]} 22. Rxa7 {[%clk 0:00:48]}  Nf5 {[%clk 0:01:05]} 23. Rg1 {[%clk 0:00:45]}  Qh5 {[%clk 0:01:04]} 24. Rd7 {[%clk 0:00:33]}  h6 {[%clk 0:00:57]} 25. Rd8+ {[%clk 0:00:17]}  Rxd8 {[%clk 0:00:56]} 26. Qxd8+ {[%clk 0:00:18]}  Kh7 {[%clk 0:00:57]} 27. Qd3 {[%clk 0:00:14]}  Rh3 {[%clk 0:00:44]} 28. Rg2 {[%clk 0:00:14]}  Qf3 {[%clk 0:00:32]} 29. Kg1 {[%clk 0:00:11]}  e4 {[%clk 0:00:32]} 30. Qd7 {[%clk 0:00:10]}  Rh4 {[%clk 0:00:25]} 31. b3 {[%clk 0:00:04]}  Rg4 {[%clk 0:00:23]} 32. Rxg4 {[%clk 0:00:03]}  Qxg4+ {[%clk 0:00:24]} 33. Kh1 {[%clk 0:00:03]}  Ng3+ {[%clk 0:00:25]} 34. hxg3 {[%clk 0:00:02]}  Qxd7 {[%clk 0:00:25]} 35. Kg2 {[%clk 0:00:02]}  Qd1 {[%clk 0:00:25]} 0-1


[Site "https://www.chess.com"]

[Event "Titled Tuesday Blitz April 26 Late 2022"]
[White "Yedidia, Daniel"]
[Black "Jarocka, Liwia"]
[WhiteFideId "30905907"]
[BlackFideId "21807558"]
[WhiteElo "2598"]
[BlackElo "1896"]
[Result "1-0"]
[Round "03"]
[TimeControl "180+1"]
[Date "2022.04.26"]
[WhiteClock "0:00:54"]
[BlackClock "0:01:16"]

1. d4 {[%clk 0:03:00]}  c6 {[%clk 0:02:59]} 2. c4 {[%clk 0:03:00]}  d5 {[%clk 0:03:00]} 3. Nf3 {[%clk 0:03:01]}  Nf6 {[%clk 0:03:00]} 4. Nc3 {[%clk 0:03:00]}  e6 {[%clk 0:02:59]} 5. e3 {[%clk 0:02:59]}  Bb4 {[%clk 0:02:59]} 6. Bd3 {[%clk 0:02:59]}  O-O {[%clk 0:02:58]} 7. O-O {[%clk 0:02:58]}  Nbd7 {[%clk 0:02:58]} 8. a3 {[%clk 0:02:56]}  Bxc3 {[%clk 0:02:57]} 9. bxc3 {[%clk 0:02:56]}  dxc4 {[%clk 0:02:58]} 10. Bxc4 {[%clk 0:02:56]}  b5 {[%clk 0:02:59]} 11. Be2 {[%clk 0:02:56]}  Bb7 {[%clk 0:03:00]} 12. c4 {[%clk 0:02:56]}  bxc4 {[%clk 0:02:55]} 13. Bxc4 {[%clk 0:02:55]}  c5 {[%clk 0:02:56]} 14. Rb1 {[%clk 0:02:53]}  Bxf3 {[%clk 0:02:55]} 15. Qxf3 {[%clk 0:02:52]}  cxd4 {[%clk 0:02:55]} 16. exd4 {[%clk 0:02:53]}  Nb6 {[%clk 0:02:55]} 17. Ba2 {[%clk 0:02:44]}  Qxd4 {[%clk 0:02:53]} 18. Be3 {[%clk 0:02:44]}  Qe4 {[%clk 0:02:50]} 19. Qg3 {[%clk 0:02:32]}  Qg4 {[%clk 0:02:45]} 20. Qc7 {[%clk 0:02:20]}  Nbd5 {[%clk 0:02:42]} 21. Qc5 {[%clk 0:02:06]}  Rfc8 {[%clk 0:02:36]} 22. Qd4 {[%clk 0:02:02]}  Nxe3 {[%clk 0:02:27]} 23. Qxe3 {[%clk 0:02:02]}  Qe4 {[%clk 0:02:25]} 24. Qg3 {[%clk 0:01:49]}  Qg6 {[%clk 0:02:17]} 25. Qe3 {[%clk 0:01:46]}  Qc2 {[%clk 0:02:10]} 26. Bb3 {[%clk 0:01:37]}  Qc3 {[%clk 0:02:09]} 27. Qf4 {[%clk 0:01:17]}  Qa5 {[%clk 0:01:56]} 28. a4 {[%clk 0:01:11]}  Qc7 {[%clk 0:01:44]} 29. Qe3 {[%clk 0:01:08]}  Qc5 {[%clk 0:01:34]} 30. Qf4 {[%clk 0:01:03]}  Nd5 {[%clk 0:01:23]} 31. Bxd5 {[%clk 0:01:01]}  Qxd5 {[%clk 0:01:21]} 32. Rfd1 {[%clk 0:00:59]}  Qc4 {[%clk 0:01:16]} 33. Rd8+ {[%clk 0:00:54]} 1-0


[Site "https://www.chess.com"]

[Event "Titled Tuesday Blitz April 26 Late 2022"]
[White "Yurovskykh, Oleksandr"]
[Black "Oro, Luis"]
[WhiteFideId "14134020"]
[BlackFideId "104094"]
[WhiteElo "2292"]
[BlackElo "2399"]
[Result "1-0"]
[Round "03"]
[TimeControl "180+1"]
[Date "2022.04.26"]
[WhiteClock "0:00:05"]
[BlackClock "0:00:03"]

1. d4 {[%clk 0:03:00]}  Nf6 {[%clk 0:02:58]} 2. Nf3 {[%clk 0:03:00]}  e6 {[%clk 0:02:57]} 3. Bf4 {[%clk 0:02:56]}  b6 {[%clk 0:02:55]} 4. e3 {[%clk 0:02:56]}  Bb7 {[%clk 0:02:54]} 5. Bd3 {[%clk 0:02:56]}  Be7 {[%clk 0:02:54]} 6. h3 {[%clk 0:02:56]}  O-O {[%clk 0:02:54]} 7. O-O {[%clk 0:02:56]}  d5 {[%clk 0:02:54]} 8. Nbd2 {[%clk 0:02:56]}  c5 {[%clk 0:02:54]} 9. c3 {[%clk 0:02:52]}  Nc6 {[%clk 0:02:52]} 10. Qe2 {[%clk 0:02:53]}  Qd7 {[%clk 0:02:31]} 11. Ne5 {[%clk 0:02:50]}  Nxe5 {[%clk 0:02:28]} 12. dxe5 {[%clk 0:02:48]}  Ne4 {[%clk 0:02:06]} 13. Nxe4 {[%clk 0:02:46]}  dxe4 {[%clk 0:02:07]} 14. Bc4 {[%clk 0:02:22]}  Bd5 {[%clk 0:01:53]} 15. Ba6 {[%clk 0:02:13]}  Qa4 {[%clk 0:01:36]} 16. Bb5 {[%clk 0:02:01]}  Qa5 {[%clk 0:01:35]} 17. c4 {[%clk 0:01:38]}  Bb7 {[%clk 0:01:24]} 18. Qc2 {[%clk 0:01:37]}  a6 {[%clk 0:01:15]} 19. Ba4 {[%clk 0:01:36]}  b5 {[%clk 0:01:07]} 20. Bb3 {[%clk 0:01:32]}  Qb6 {[%clk 0:01:05]} 21. Rfd1 {[%clk 0:01:27]}  Rad8 {[%clk 0:01:04]} 22. a4 {[%clk 0:01:14]}  b4 {[%clk 0:00:47]} 23. Qe2 {[%clk 0:01:04]}  f5 {[%clk 0:00:42]} 24. exf6 {[%clk 0:00:55]}  Bxf6 {[%clk 0:00:26]} 25. Rxd8 {[%clk 0:00:54]}  Rxd8 {[%clk 0:00:25]} 26. Rd1 {[%clk 0:00:55]}  a5 {[%clk 0:00:22]} 27. Bg3 {[%clk 0:00:25]}  Bc6 {[%clk 0:00:14]} 28. Kh2 {[%clk 0:00:21]}  g6 {[%clk 0:00:13]} 29. Rxd8+ {[%clk 0:00:16]}  Qxd8 {[%clk 0:00:13]} 30. Bd1 {[%clk 0:00:17]}  Kg7 {[%clk 0:00:13]} 31. b3 {[%clk 0:00:17]}  h5 {[%clk 0:00:08]} 32. Kg1 {[%clk 0:00:13]}  h4 {[%clk 0:00:08]} 33. Bh2 {[%clk 0:00:14]}  Qd3 {[%clk 0:00:06]} 34. Qxd3 {[%clk 0:00:11]}  exd3 {[%clk 0:00:06]} 35. f3 {[%clk 0:00:12]}  Bc3 {[%clk 0:00:07]} 36. Kf2 {[%clk 0:00:10]}  e5 {[%clk 0:00:07]} 37. e4 {[%clk 0:00:10]}  Kf6 {[%clk 0:00:07]} 38. Kf1 {[%clk 0:00:10]}  Bd4 {[%clk 0:00:06]} 39. Ke1 {[%clk 0:00:07]}  Be3 {[%clk 0:00:06]} 40. g3 {[%clk 0:00:06]}  Kg5 {[%clk 0:00:05]} 41. Kf1 {[%clk 0:00:06]}  Kh5 {[%clk 0:00:04]} 42. Kg2 {[%clk 0:00:06]}  hxg3 {[%clk 0:00:03]} 43. f4+ {[%clk 0:00:06]}  Kh4 {[%clk 0:00:03]} 44. Bxg3# {[%clk 0:00:05]} 1-0


[Site "https://www.chess.com"]

[Event "Titled Tuesday Blitz April 26 Late 2022"]
[White "Zherebtsova, Alexandra"]
[Black "Eggleston, Thomas A"]
[WhiteFideId "24129518"]
[BlackFideId "412139"]
[WhiteElo "2025"]
[BlackElo "2174"]
[Result "1-0"]
[Round "03"]
[TimeControl "180+1"]
[Date "2022.04.26"]
[WhiteClock "0:00:15"]
[BlackClock "0:00:02"]

1. d4 {[%clk 0:02:55]}  e6 {[%clk 0:03:00]} 2. Nf3 {[%clk 0:02:54]}  f5 {[%clk 0:03:00]} 3. g3 {[%clk 0:02:51]}  Nf6 {[%clk 0:03:00]} 4. Bg2 {[%clk 0:02:51]}  Be7 {[%clk 0:03:00]} 5. O-O {[%clk 0:02:51]}  O-O {[%clk 0:03:01]} 6. c4 {[%clk 0:02:50]}  d6 {[%clk 0:03:01]} 7. b3 {[%clk 0:02:49]}  Ne4 {[%clk 0:03:01]} 8. Bb2 {[%clk 0:02:48]}  Bf6 {[%clk 0:03:02]} 9. Nfd2 {[%clk 0:02:46]}  d5 {[%clk 0:02:59]} 10. f3 {[%clk 0:02:41]}  Nxd2 {[%clk 0:02:52]} 11. Qxd2 {[%clk 0:02:25]}  c5 {[%clk 0:02:45]} 12. dxc5 {[%clk 0:02:13]}  d4 {[%clk 0:02:40]} 13. Na3 {[%clk 0:02:06]}  a5 {[%clk 0:02:31]} 14. Nb5 {[%clk 0:02:05]}  Nc6 {[%clk 0:02:26]} 15. Rfd1 {[%clk 0:01:53]}  e5 {[%clk 0:02:22]} 16. e3 {[%clk 0:01:50]}  Qe7 {[%clk 0:01:32]} 17. exd4 {[%clk 0:01:30]}  exd4 {[%clk 0:01:32]} 18. Nd6 {[%clk 0:01:25]}  f4 {[%clk 0:01:03]} 19. Re1 {[%clk 0:01:03]}  Be5 {[%clk 0:00:54]} 20. gxf4 {[%clk 0:00:54]}  Bxf4 {[%clk 0:00:54]} 21. Rxe7 {[%clk 0:00:44]}  Bxd2 {[%clk 0:00:49]} 22. Re2 {[%clk 0:00:43]}  Be3+ {[%clk 0:00:48]} 23. Kh1 {[%clk 0:00:44]}  Be6 {[%clk 0:00:34]} 24. Rd1 {[%clk 0:00:36]}  Rf4 {[%clk 0:00:33]} 25. Nxb7 {[%clk 0:00:34]}  Raf8 {[%clk 0:00:29]} 26. Nd6 {[%clk 0:00:31]}  R8f6 {[%clk 0:00:26]} 27. Ne4 {[%clk 0:00:27]}  Rh6 {[%clk 0:00:23]} 28. Bc1 {[%clk 0:00:21]}  Bxc1 {[%clk 0:00:19]} 29. Rxc1 {[%clk 0:00:22]}  d3 {[%clk 0:00:18]} 30. Re3 {[%clk 0:00:20]}  Ne5 {[%clk 0:00:12]} 31. Rd1 {[%clk 0:00:18]}  Rfh4 {[%clk 0:00:11]} 32. Ng3 {[%clk 0:00:18]}  Rxh2+ {[%clk 0:00:10]} 33. Kg1 {[%clk 0:00:18]}  Nxf3+ {[%clk 0:00:05]} 34. Bxf3 {[%clk 0:00:15]}  Bf7 {[%clk 0:00:04]} 35. Rexd3 {[%clk 0:00:15]}  g5 {[%clk 0:00:03]} 36. Bg2 {[%clk 0:00:14]}  R2h4 {[%clk 0:00:02]} 37. Rd8+ {[%clk 0:00:14]}  Kg7 {[%clk 0:00:02]} 38. Nf5+ {[%clk 0:00:14]}  Kf6 {[%clk 0:00:02]} 39. Nxh4 {[%clk 0:00:14]}  gxh4 {[%clk 0:00:02]} 40. R1d6+ {[%clk 0:00:14]}  Kg5 {[%clk 0:00:02]} 41. Rxh6 {[%clk 0:00:14]}  Kxh6 {[%clk 0:00:02]} 42. c6 {[%clk 0:00:15]} 1-0


[Site "https://www.chess.com"]

[Event "Titled Tuesday Blitz April 26 Late 2022"]
[White "Zor, Alber Kadir"]
[Black "Zivkovic, Nemanja"]
[WhiteFideId "6353169"]
[BlackFideId "942154"]
[WhiteElo "1966"]
[BlackElo "2364"]
[Result "1-0"]
[Round "03"]
[TimeControl "180+1"]
[Date "2022.04.26"]
[WhiteClock "0:00:53"]
[BlackClock "0:00:09"]

1. e4 {[%clk 0:03:00]}  c5 {[%clk 0:02:53]} 2. Nf3 {[%clk 0:03:01]}  d6 {[%clk 0:02:53]} 3. d4 {[%clk 0:03:01]}  cxd4 {[%clk 0:02:53]} 4. Nxd4 {[%clk 0:03:02]}  Nf6 {[%clk 0:02:53]} 5. Nc3 {[%clk 0:03:03]}  a6 {[%clk 0:02:52]} 6. h3 {[%clk 0:03:03]}  e5 {[%clk 0:02:47]} 7. Nde2 {[%clk 0:03:03]}  h5 {[%clk 0:02:47]} 8. g3 {[%clk 0:03:03]}  Be6 {[%clk 0:02:47]} 9. Bg2 {[%clk 0:03:04]}  Nbd7 {[%clk 0:02:47]} 10. Be3 {[%clk 0:02:58]}  Be7 {[%clk 0:02:46]} 11. O-O {[%clk 0:02:58]}  b5 {[%clk 0:02:47]} 12. a4 {[%clk 0:02:58]}  b4 {[%clk 0:02:47]} 13. Nd5 {[%clk 0:02:59]}  Bxd5 {[%clk 0:02:46]} 14. exd5 {[%clk 0:03:00]}  O-O {[%clk 0:02:41]} 15. a5 {[%clk 0:02:32]}  Rb8 {[%clk 0:02:38]} 16. Nc1 {[%clk 0:02:33]}  Qc7 {[%clk 0:02:33]} 17. Qe2 {[%clk 0:02:33]}  Qb7 {[%clk 0:02:31]} 18. Ra4 {[%clk 0:02:25]}  Rfc8 {[%clk 0:02:27]} 19. Na2 {[%clk 0:02:20]}  b3 {[%clk 0:01:45]} 20. Nb4 {[%clk 0:02:19]}  Nc5 {[%clk 0:01:39]} 21. Bxc5 {[%clk 0:02:16]}  Rxc5 {[%clk 0:01:38]} 22. Nc6 {[%clk 0:02:17]}  Rxc2 {[%clk 0:01:23]} 23. Qd3 {[%clk 0:02:11]}  Bf8 {[%clk 0:01:12]} 24. Rb4 {[%clk 0:02:11]}  Qxb4 {[%clk 0:01:10]} 25. Nxb4 {[%clk 0:02:09]}  Rxb4 {[%clk 0:01:11]} 26. Qxa6 {[%clk 0:02:09]}  Rxb2 {[%clk 0:01:09]} 27. Qd3 {[%clk 0:02:06]}  Ra2 {[%clk 0:01:05]} 28. Qc3 {[%clk 0:02:06]}  Rb5 {[%clk 0:01:02]} 29. Rb1 {[%clk 0:02:06]}  b2 {[%clk 0:01:01]} 30. a6 {[%clk 0:02:01]}  Nd7 {[%clk 0:00:45]} 31. a7 {[%clk 0:02:00]}  Nc5 {[%clk 0:00:40]} 32. Bf1 {[%clk 0:01:57]}  Rb7 {[%clk 0:00:32]} 33. Rxb2 {[%clk 0:01:56]}  Raxa7 {[%clk 0:00:29]} 34. h4 {[%clk 0:01:55]}  g6 {[%clk 0:00:28]} 35. Be2 {[%clk 0:01:50]}  Be7 {[%clk 0:00:26]} 36. Rxb7 {[%clk 0:01:46]}  Rxb7 {[%clk 0:00:27]} 37. Qc4 {[%clk 0:01:46]}  Rb2 {[%clk 0:00:26]} 38. Bf1 {[%clk 0:01:46]}  Bd8 {[%clk 0:00:25]} 39. f4 {[%clk 0:01:36]}  exf4 {[%clk 0:00:20]} 40. Qxf4 {[%clk 0:01:36]}  Be7 {[%clk 0:00:17]} 41. g4 {[%clk 0:01:33]}  hxg4 {[%clk 0:00:17]} 42. Qxg4 {[%clk 0:01:34]}  Bf6 {[%clk 0:00:17]} 43. h5 {[%clk 0:01:33]}  Kg7 {[%clk 0:00:16]} 44. hxg6 {[%clk 0:01:31]}  fxg6 {[%clk 0:00:17]} 45. Be2 {[%clk 0:01:24]}  Rd2 {[%clk 0:00:16]} 46. Bf3 {[%clk 0:01:24]}  Bd4+ {[%clk 0:00:16]} 47. Kh1 {[%clk 0:01:24]}  Be5 {[%clk 0:00:16]} 48. Kg1 {[%clk 0:01:20]}  Kf6 {[%clk 0:00:13]} 49. Qh4+ {[%clk 0:01:20]}  Kg7 {[%clk 0:00:14]} 50. Qe7+ {[%clk 0:01:20]}  Kh6 {[%clk 0:00:14]} 51. Qh4+ {[%clk 0:01:19]}  Kg7 {[%clk 0:00:15]} 52. Qe7+ {[%clk 0:01:19]}  Kg8 {[%clk 0:00:15]} 53. Bg4 {[%clk 0:00:52]}  Rd4 {[%clk 0:00:10]} 54. Be6+ {[%clk 0:00:51]}  Kh8 {[%clk 0:00:08]} 55. Qf8+ {[%clk 0:00:51]}  Kh7 {[%clk 0:00:08]} 56. Bg8+ {[%clk 0:00:51]}  Kh8 {[%clk 0:00:09]} 57. Bf7+ {[%clk 0:00:52]}  Kh7 {[%clk 0:00:09]} 58. Qg8+ {[%clk 0:00:53]} 1-0


[Site "https://www.chess.com"]